[Event "FIN-ch Women 2017"]
[Site "Helsinki"]
[Date "2017.06.18"]
[Round "7"]
[White "Nazarova, Anastasia"]
[Black "Rinne, Heini"]
[Result "1-0"]
[ECO "B06"]
[WhiteElo "2038"]
[BlackElo "1746"]
[Annotator "NA RC"]
[PlyCount "45"]
[EventDate "2017.??.??"]
[EventType "tourn"]
[EventCountry "FIN"]
[SourceTitle "playchess.com"]
[Source "ChessBase"]
[SourceQuality "1"]
[TimeControl "40/5400+30:1800+30"]

{[%evp 12,36,54,36,31,24,36,20,29,37,96,32767,32767,32767,84,77,123,32767,32767,32767,147,125,118,32767,249,211,268]} 1. e4 {[%emt 0:00:00]} g6 {[%emt 0:00:19]} 2. d4 {[%emt 0:00:00]} Bg7 {[%emt 0:00:05]} 3. Nc3 {[%emt 0:00:00]} a6 {[%emt 0:00:38]} 4. Be3 {[%emt 0:00:00]} b5 {[%emt 0:02:03]} 5. Qd2 {[%emt 0:00:10]} Bb7 {[%emt 0:01:23]} 6. f3 {[%emt 0:00:04]} d5 {[%emt 0:00:33]} 7. O-O-O {[%emt 0:06:51]} dxe4 {[%emt 0:11:04]} 8. Nxe4 {[%emt 0:00:40]} Nd7 {[%emt 0:03:45]} 9. Bd3 {[%emt 0:07:04]} Ngf6 {[%emt 0:04:10]} 10. Bh6 {[%emt 0:10:11]} O-O {[%emt 0:05:06]} ({Better is} 10... Bxh6 $14 11. Qxh6 e6) 11. h4 {[%emt 0:14:47]} Nxe4 {[%emt 0:07:08]} 12. Bxe4 {[%emt 0:01:23]} Bxe4 {[%emt 0:00:36]} 13. fxe4 {[%emt 0:01:17]} Nf6 {[%emt 0:02:42]} 14. Bxg7 {[%emt 0:01:00]} Kxg7 {[%emt 0:00:46]} 15. e5 {[%emt 0:00:41]} Ne4 {[%emt 0:31:00]} 16. Qe3 {[%emt 0:00:11]} Qd5 {[%emt 0:00:36]} 17. h5 {[%emt 0:07:57]} h6 {[%emt 0:09:06]} (17... f5 $16 {keeps fighting.}) 18. hxg6 $18 {[%emt 0:01:31]} Ng5 {[%emt 0:00:04]} 19. Nf3 {[%emt 0:08:17]} fxg6 {[%emt 0:11:02]} 20. Nxg5 {[%emt 0:00:36]} hxg5 {[%emt 0:00:07]} 21. Qxg5 {[%emt 0:00:18]} Qe6 {[%emt 0:05:49]} 22. Qh6+ {[%emt 0:00:18]} Kf7 {[%emt 0:00:02]} 23. Rdf1+ {[%emt 0:00:07]} 1-0

[Event "FIN-ch Women 2017"]
[Site "Helsinki"]
[Date "2017.06.18"]
[Round "7"]
[White "Al Najar, Huda"]
[Black "Norlamo, Sarabella"]
[Result "0-1"]
[ECO "C56"]
[WhiteElo "1747"]
[BlackElo "1640"]
[Annotator "NA RC"]
[PlyCount "120"]
[EventDate "2017.??.??"]
[EventType "tourn"]
[EventCountry "FIN"]
[SourceTitle "playchess.com"]
[Source "ChessBase"]
[SourceQuality "1"]
[TimeControl "40/5400+30:1800+30"]

1. e4 {[%emt 0:00:00]} e5 {[%emt 0:00:05]} 2. Nf3 {[%emt 0:00:00]} Nc6 {[%emt 0:00:05]} 3. d4 {[%emt 0:00:00]} exd4 {[%emt 0:00:06]} 4. Bc4 {[%emt 0:00:00]} Nf6 {[%emt 0:00:11]} 5. e5 {[%emt 0:00:00]} d5 {[%emt 0:00:13]} 6. Bb5 {[%emt 0:00:00]} Ne4 {[%emt 0:00:11]} 7. Nxd4 {[%emt 0:00:00]} Bd7 {[%emt 0:00:07]} 8. Bxc6 {[%emt 0:00:01]} bxc6 {[%emt 0:00:14]} 9. O-O {[%emt 0:00:22]} Be7 {[%emt 0:01:01]} 10. f3 {[%emt 0:00:45]} Nc5 {[%emt 0:00:47]} 11. Be3 {[%emt 0:02:12]} O-O {[%emt 0:03:40]} 12. Nd2 {[%emt 0:00:57]} Re8 {[%emt 0:06:14]} 13. f4 {[%emt 0:05:15]} Rb8 {[%emt 0:20:52]} 14. N2b3 {[%emt 0:01:43]} Nxb3 {[%emt 0:02:39]} 15. Nxb3 {[%emt 0:01:55]} a6 {[%emt 0:02:48]} 16. Rb1 {[%emt 0:21:39]} f6 {[%emt 0:06:07]} 17. Bd4 {[%emt 0:16:02]} fxe5 {[%emt 0:04:58]} 18. fxe5 {[%emt 0:03:54]} Qc8 {[%emt 0:13:03]} 19. Qe1 {[%emt 0:03:33]} Bf5 {[%emt 0:01:15]} 20. Qc3 {[%emt 0:01:48]} Qe6 {[%emt 0:08:05]} 21. Rbe1 {[%emt 0:05:12]} Bb4 {[%emt 0:01:48]} 22. Qe3 {[%emt 0:05:25]} Bxe1 {[%emt 0:01:45]} 23. Nc5 {[%emt 0:01:07]} Qc8 {[%emt 0:04:38]} 24. Rxe1 {[%emt 0:00:41]} Bxc2 {[%emt 0:01:22]} 25. e6 {[%emt 0:00:19]} Re7 {[%emt 0:04:45]} 26. Qg5 {[%emt 0:01:32]} Qe8 {[%emt 0:01:19]} 27. Bf6 {[%emt 0:00:40]} h6 {[%emt 0:01:21]} 28. Qg3 {[%emt 0:00:56]} Rb5 {[%emt 0:02:14]} 29. Bxe7 {[%emt 0:01:59]} Qxe7 {[%emt 0:00:02]} 30. Nd7 {[%emt 0:02:14]} Be4 {[%emt 0:02:19]} 31. Qe5 {[%emt 0:09:30]} Rb7 {[%emt 0:04:33]} 32. a3 {[%emt 0:01:48]} Bg6 {[%emt 0:02:42]} 33. Rf1 {[%emt 0:01:10]} Be8 {[%emt 0:01:10]} 34. Rf8+ {[%emt 0:00:16]} Kh7 {[%emt 0:00:21]} 35. Qf5+ {[%emt 0:00:26]} Bg6 {[%emt 0:01:04]} 36. Qe5 {[%emt 0:02:27]} Be8 {[%emt 0:01:44]} 37. g3 {[%emt 0:02:59]} Bxd7 {[%emt 0:01:13]} 38. Rf7 {[%emt 0:00:09]} Qc5+ {[%emt 0:00:05]} 39. Kg2 {[%emt 0:02:54]} Qc2+ {[%emt 0:00:29]} 40. Rf2 {[%emt 0:00:00]} Qe4+ {[%emt 0:00:56]} 41. Qxe4+ {[%emt 0:01:09]} dxe4 {[%emt 0:00:01]} 42. exd7 {[%emt 0:01:07]} Rb8 {[%emt 0:00:09]} 43. Rf7 {[%emt 0:00:46]} Rxb2+ {[%emt 0:01:59]} 44. Kf1 {[%emt 0:00:43]} Rd2 {[%emt 0:00:30]} 45. Ke1 {[%emt 0:01:12]} Rd4 {[%emt 0:02:34]} 46. Ke2 {[%emt 0:01:25]} Kg6 {[%emt 0:00:23]} 47. Ke3 {[%emt 0:01:39]} Kxf7 {[%emt 0:02:45]} 48. Kxd4 {[%emt 0:00:17]} Ke7 {[%emt 0:00:13]} 49. Kxe4 {[%emt 0:02:26]} Kxd7 {[%emt 0:00:02]} 50. Ke5 {[%emt 0:01:00]} c5 {[%emt 0:03:06]} 51. Kd5 {[%emt 0:00:08]} c4 {[%emt 0:00:05]} 52. Kxc4 {[%emt 0:00:34]} Kc6 {[%emt 0:00:50]} 53. h4 {[%emt 0:02:27]} h5 {[%emt 0:00:27]} 54. Kb4 {[%emt 0:02:29]} Kd5 {[%emt 0:03:21]} 55. a4 {[%emt 0:03:28]} c5+ {[%emt 0:02:06]} 56. Kc3 {[%emt 0:00:13]} c4 {[%emt 0:00:57]} 57. Kd2 {[%emt 0:01:49]} Kc5 {[%emt 0:00:52]} 58. Kc3 {[%emt 0:00:15]} a5 {[%emt 0:00:08]} 59. Kd2 {[%emt 0:01:34]} Kb4 {[%emt 0:00:08]} 60. Kc2 {[%emt 0:00:25]} Kxa4 {[%emt 0:00:10]} 0-1

[Event "FIN-ch Women 2017"]
[Site "Helsinki"]
[Date "2017.06.18"]
[Round "7"]
[White "Al Argha, Fatima"]
[Black "Dannenberg, Alia"]
[Result "0-1"]
[ECO "B01"]
[WhiteElo "1334"]
[BlackElo "1984"]
[Annotator "NA RC"]
[PlyCount "52"]
[EventDate "2017.??.??"]
[EventType "tourn"]
[EventCountry "FIN"]
[SourceTitle "playchess.com"]
[Source "ChessBase"]
[SourceQuality "1"]
[TimeControl "40/5400+30:1800+30"]

1. e4 {[%emt 0:00:00]} d5 {[%emt 0:00:01]} 2. exd5 {[%emt 0:00:00]} Qxd5 {[%emt 0:00:02]} 3. d4 {[%emt 0:00:41]} e5 {[%emt 0:00:09]} 4. Nc3 {[%emt 0:00:40]} Qxd4 {[%emt 0:01:57]} 5. Qxd4 {[%emt 0:00:11]} exd4 {[%emt 0:00:02]} 6. Nb5 {[%emt 0:00:07]} Bd6 {[%emt 0:02:38]} 7. Nf3 {[%emt 0:05:19]} Nc6 {[%emt 0:00:40]} 8. Nbxd4 {[%emt 0:00:45]} Nxd4 {[%emt 0:01:12]} 9. Nxd4 {[%emt 0:00:05]} a6 {[%emt 0:00:51]} 10. Bd2 {[%emt 0:05:17]} Ne7 {[%emt 0:04:08]} 11. O-O-O {[%emt 0:01:57]} O-O {[%emt 0:00:23]} 12. Bc4 $11 {[%emt 0:01:16]} b5 {[%emt 0:00:50]} 13. Bb3 $2 {[%emt 0:00:15]} (13. Bd3 $11 {and White is okay.}) 13... c5 {[%emt 0:00:49]} 14. Nf3 {[%emt 0:24:22]} c4 {[%emt 0:03:57]} 15. Be3 {[%emt 0:00:35]} Nf5 {[%emt 0:04:19]} 16. Rhe1 {[%emt 0:14:34]} Nxe3 {[%emt 0:04:06]} 17. Rxe3 {[%emt 0:00:12]} Bf4 {[%emt 0:00:10]} 18. Kb1 {[%emt 0:02:28]} Bxe3 {[%emt 0:00:07]} 19. fxe3 {[%emt 0:00:16]} Bg4 {[%emt 0:00:14]} 20. h3 {[%emt 0:00:22]} Bxf3 {[%emt 0:00:07]} 21. gxf3 {[%emt 0:00:09]} Rad8 {[%emt 0:00:29]} 22. c3 {[%emt 0:00:44]} cxb3 {[%emt 0:00:09]} 23. Rxd8 {[%emt 0:00:08]} bxa2+ {[%emt 0:00:28]} 24. Kxa2 {[%emt 0:00:08]} Rxd8 {[%emt 0:00:05]} 25. e4 {[%emt 0:01:16]} a5 {[%emt 0:00:17]} 26. Kb3 {[%emt 0:01:46]} Rd3 {[%emt 0:00:16]} 0-1